[Event "Live Chess"]
[Site "Chess.com"]
[Date "2023.05.20"]
[Round "-"]
[White "Tushinskiy"]
[Black "MalcolmPein"]
[Result "1-0"]
[WhiteElo "2106"]
[BlackElo "2250"]
[TimeControl "300"]
[EndTime "13:28:58 PDT"]
[Termination "Tushinskiy won on time"]

1. d4 {[%clk 0:04:58.3]} 1... Nf6 {[%clk 0:04:56.4]} 2. c3 {[%clk 0:04:58.2]}
2... d6 {[%clk 0:04:53]} 3. Nf3 {[%clk 0:04:58.1]} 3... Nbd7 {[%clk 0:04:52.1]}
4. Bf4 {[%clk 0:04:52.1]} 4... c5 {[%clk 0:04:36.9]} 5. Bg3 {[%clk 0:04:52]}
5... Qb6 {[%clk 0:04:34.3]} 6. Qc1 {[%clk 0:04:48.8]} 6... Ne4 {[%clk 0:04:30]}
7. Nbd2 {[%clk 0:04:38.1]} 7... Nxg3 {[%clk 0:04:27.4]} 8. hxg3 {[%clk
0:04:35.3]} 8... g6 {[%clk 0:04:21.8]} 9. e3 {[%clk 0:04:32.4]} 9... Bg7 {[%clk
0:04:20.9]} 10. Bd3 {[%clk 0:04:30.4]} 10... cxd4 {[%clk 0:04:02.7]} 11. exd4
{[%clk 0:04:28.4]} 11... O-O {[%clk 0:03:54.6]} 12. Ng5 {[%clk 0:04:24.6]} 12...
h6 {[%clk 0:03:51.4]} 13. Ngf3 {[%clk 0:04:21.8]} 13... e5 {[%clk 0:03:46.5]}
14. dxe5 {[%clk 0:04:20.2]} 14... dxe5 {[%clk 0:03:42.3]} 15. O-O {[%clk
0:04:18.6]} 15... Nc5 {[%clk 0:03:35.2]} 16. Bc2 {[%clk 0:04:16.6]} 16... Be6
{[%clk 0:03:25.8]} 17. Re1 {[%clk 0:04:10.5]} 17... Qc7 {[%clk 0:02:56.7]} 18.
Ne4 {[%clk 0:03:59.5]} 18... Rad8 {[%clk 0:02:18.8]} 19. Qe3 {[%clk 0:03:47.8]}
19... Nxe4 {[%clk 0:02:14]} 20. Bxe4 {[%clk 0:03:47.7]} 20... f5 {[%clk
0:02:11.8]} 21. Bc2 {[%clk 0:03:46.4]} 21... e4 {[%clk 0:02:08.4]} 22. Nh4
{[%clk 0:03:45.1]} 22... Qf7 {[%clk 0:02:00.5]} 23. f3 {[%clk 0:03:34.5]} 23...
g5 {[%clk 0:01:52]} 24. fxe4 {[%clk 0:03:33.5]} 24... gxh4 {[%clk 0:01:50.3]}
25. exf5 {[%clk 0:03:32.9]} 25... Bxf5 {[%clk 0:01:14]} 26. Bb3 {[%clk
0:03:31.1]} 26... hxg3 {[%clk 0:01:00]} 27. Bxf7+ {[%clk 0:03:28.8]} 27... Rxf7
{[%clk 0:00:59.9]} 28. Qxg3 {[%clk 0:03:28.2]} 28... Rd2 {[%clk 0:00:58.1]} 29.
Re8+ {[%clk 0:03:22.4]} 29... Kh7 {[%clk 0:00:56.6]} 30. Rae1 {[%clk 0:03:19.2]}
30... Rd3 {[%clk 0:00:40.6]} 31. R8e3 {[%clk 0:03:03.9]} 31... Rd2 {[%clk
0:00:37.9]} 32. Re7 {[%clk 0:03:01.5]} 32... Rd3 {[%clk 0:00:28.4]} 33. Qxd3
{[%clk 0:02:56.9]} 33... Bxd3 {[%clk 0:00:25.1]} 34. Rxf7 {[%clk 0:02:56.1]}
34... Kg6 {[%clk 0:00:13]} 35. Rxg7+ {[%clk 0:02:55.2]} 35... Kxg7 {[%clk
0:00:10.8]} 36. Re7+ {[%clk 0:02:55.1]} 1-0

[Event "Live Chess"]
[Site "Chess.com"]
[Date "2023.05.20"]
[Round "-"]
[White "ExIsambard"]
[Black "DmitryVasliev"]
[Result "1-0"]
[WhiteElo "1980"]
[BlackElo "1674"]
[TimeControl "300"]
[EndTime "13:29:05 PDT"]
[Termination "ExIsambard won on time"]

1. d4 {[%clk 0:04:57.2]} 1... d5 {[%clk 0:04:59]} 2. Nf3 {[%clk 0:04:56.1]} 2...
c6 {[%clk 0:04:58.4]} 3. Bg5 {[%clk 0:04:56]} 3... h6 {[%clk 0:04:56.6]} 4. Bf4
{[%clk 0:04:53.8]} 4... g6 {[%clk 0:04:55.7]} 5. e3 {[%clk 0:04:53.2]} 5... Bg7
{[%clk 0:04:55.2]} 6. Bd3 {[%clk 0:04:52.7]} 6... e6 {[%clk 0:04:54.3]} 7. Nbd2
{[%clk 0:04:52.3]} 7... Ne7 {[%clk 0:04:53.4]} 8. Qe2 {[%clk 0:04:48.7]} 8...
Nd7 {[%clk 0:04:33.7]} 9. O-O-O {[%clk 0:04:45.3]} 9... Qa5 {[%clk 0:04:25.3]}
10. Kb1 {[%clk 0:04:43.5]} 10... c5 {[%clk 0:04:20.9]} 11. c3 {[%clk 0:04:41.4]}
11... c4 {[%clk 0:04:19.2]} 12. Bc2 {[%clk 0:04:40]} 12... b5 {[%clk 0:04:17.2]}
13. Bd6 {[%clk 0:04:39]} 13... Nc6 {[%clk 0:04:15]} 14. e4 {[%clk 0:04:34.3]}
14... Kd8 {[%clk 0:04:12.5]} 15. exd5 {[%clk 0:04:25.5]} 15... exd5 {[%clk
0:04:11.2]} 16. Ne5 {[%clk 0:04:20.9]} 16... Ndxe5 {[%clk 0:04:05.2]} 17. Bxe5
{[%clk 0:04:19]} 17... f6 {[%clk 0:03:46.6]} 18. Bd6 {[%clk 0:04:11.7]} 18...
Kd7 {[%clk 0:03:34.2]} 19. Bc5 {[%clk 0:04:09.4]} 19... f5 {[%clk 0:03:24.9]}
20. Nf3 {[%clk 0:04:01.4]} 20... Qc7 {[%clk 0:03:20.8]} 21. Ne5+ {[%clk
0:03:52.1]} 21... Nxe5 {[%clk 0:03:19.1]} 22. dxe5 {[%clk 0:03:47.6]} 22... Qxc5
{[%clk 0:03:16.3]} 23. e6+ {[%clk 0:03:46.4]} 23... Ke7 {[%clk 0:03:15.4]} 24.
g4 {[%clk 0:03:42.6]} 24... Rf8 {[%clk 0:02:58.1]} 25. gxf5 {[%clk 0:03:39.8]}
25... b4 {[%clk 0:02:45.9]} 26. Rhg1 {[%clk 0:03:07.8]} 26... g5 {[%clk
0:02:30.2]} 27. f4 {[%clk 0:02:56.1]} 27... bxc3 {[%clk 0:02:28.9]} 28. fxg5
{[%clk 0:02:54.6]} 28... hxg5 {[%clk 0:02:23.7]} 29. Rxg5 {[%clk 0:02:52.7]}
29... Bf6 {[%clk 0:02:22.9]} 30. Rg6 {[%clk 0:02:42.9]} 30... Rb8 {[%clk
0:02:03.8]} 31. b3 {[%clk 0:02:36.3]} 31... cxb3 {[%clk 0:01:59.9]} 32. Bxb3
{[%clk 0:02:33.5]} 32... c2+ {[%clk 0:01:55]} 33. Qxc2 {[%clk 0:02:30]} 33...
Qxc2+ {[%clk 0:01:47.7]} 34. Kxc2 {[%clk 0:02:29.8]} 34... Bb7 {[%clk
0:01:44.2]} 35. Rh6 {[%clk 0:01:57.2]} 35... Rh8 {[%clk 0:01:31.9]} 36. Rxh8
{[%clk 0:01:49.8]} 36... Rxh8 {[%clk 0:01:30.5]} 37. Rh1 {[%clk 0:01:36.9]}
37... d4 {[%clk 0:01:24.6]} 38. Rd1 {[%clk 0:01:30]} 38... Rxh2+ {[%clk
0:01:22.3]} 39. Kd3 {[%clk 0:01:29.3]} 39... Rf2 {[%clk 0:01:00.2]} 40. Rc1
{[%clk 0:01:22.1]} 40... Be5 {[%clk 0:00:58.6]} 41. Rc5 {[%clk 0:01:13]} 41...
Rxf5 {[%clk 0:00:52.2]} 42. Kc4 {[%clk 0:01:11]} 42... Kf6 {[%clk 0:00:37.8]}
43. Rb5 {[%clk 0:01:07.9]} 43... Bg2 {[%clk 0:00:25.4]} 44. Ra5 {[%clk
0:01:00.5]} 44... Bf1+ {[%clk 0:00:21.8]} 45. Kb4 {[%clk 0:00:59]} 45... d3
{[%clk 0:00:18.8]} 46. Rxa7 {[%clk 0:00:54.8]} 46... d2 {[%clk 0:00:14.3]} 47.
Rf7+ {[%clk 0:00:39.9]} 47... Kg5 {[%clk 0:00:10.4]} 48. Rd7 {[%clk 0:00:24.6]}
48... Bf6 {[%clk 0:00:01.7]} 49. Rxd2 {[%clk 0:00:20.9]} 1-0

[Event "Live Chess"]
[Site "Chess.com"]
[Date "2023.05.20"]
[Round "-"]
[White "wadsy27"]
[Black "blunderabit"]
[Result "1-0"]
[WhiteElo "2554"]
[BlackElo "1856"]
[TimeControl "300"]
[EndTime "13:29:12 PDT"]
[Termination "wadsy27 won by resignation"]

1. e4 {[%clk 0:04:54.7]} 1... c5 {[%clk 0:04:57]} 2. Nc3 {[%clk 0:04:50.9]} 2...
Nc6 {[%clk 0:04:55]} 3. Bb5 {[%clk 0:04:50]} 3... Nd4 {[%clk 0:04:53]} 4. Bc4
{[%clk 0:04:48.9]} 4... a6 {[%clk 0:04:46.7]} 5. d3 {[%clk 0:04:44.1]} 5... b5
{[%clk 0:04:43.4]} 6. Bd5 {[%clk 0:04:42.6]} 6... Rb8 {[%clk 0:04:42.2]} 7. Nge2
{[%clk 0:04:39.6]} 7... Nf6 {[%clk 0:04:31.6]} 8. Be3 {[%clk 0:03:47]} 8... Nxd5
{[%clk 0:04:09.8]} 9. Nxd5 {[%clk 0:03:37]} 9... e6 {[%clk 0:03:58.6]} 10. Ndc3
{[%clk 0:03:27.3]} 10... Nxe2 {[%clk 0:03:35.1]} 11. Qxe2 {[%clk 0:03:24]} 11...
b4 {[%clk 0:03:19.5]} 12. Na4 {[%clk 0:03:17.5]} 12... d6 {[%clk 0:03:02.9]} 13.
O-O {[%clk 0:02:55.1]} 13... Bd7 {[%clk 0:02:53.9]} 14. b3 {[%clk 0:02:47.5]}
14... Bxa4 {[%clk 0:02:52.4]} 15. bxa4 {[%clk 0:02:46.7]} 15... Be7 {[%clk
0:02:50]} 16. a3 {[%clk 0:02:43.9]} 16... a5 {[%clk 0:02:46.7]} 17. axb4 {[%clk
0:02:42.9]} 17... Rxb4 {[%clk 0:02:40.2]} 18. c3 {[%clk 0:02:38.2]} 18... Rb3
{[%clk 0:02:33.4]} 19. Qc2 {[%clk 0:02:36.2]} 19... Rb8 {[%clk 0:02:26.6]} 20.
Rfb1 {[%clk 0:02:33.9]} 20... O-O {[%clk 0:02:24.1]} 21. Rxb8 {[%clk 0:02:32.1]}
21... Qxb8 {[%clk 0:02:22.9]} 22. Rb1 {[%clk 0:02:30.3]} 22... Qc7 {[%clk
0:02:15.4]} 23. c4 {[%clk 0:02:25.8]} 23... Bf6 {[%clk 0:01:57]} 24. Qb3 {[%clk
0:02:21.7]} 24... h6 {[%clk 0:01:48]} 25. Qb7 {[%clk 0:02:17.7]} 25... Rc8
{[%clk 0:01:20.2]} 26. Qxc7 {[%clk 0:02:14.1]} 26... Rxc7 {[%clk 0:01:18.2]} 27.
Bd2 {[%clk 0:02:12.4]} 27... Kh7 {[%clk 0:00:55.8]} 28. Rb5 {[%clk 0:02:06.3]}
28... Ra7 {[%clk 0:00:31.2]} 29. Rxa5 {[%clk 0:02:04.6]} 29... Rxa5 {[%clk
0:00:24.8]} 30. Bxa5 {[%clk 0:02:04.5]} 1-0

[Event "Live Chess"]
[Site "Chess.com"]
[Date "2023.05.20"]
[Round "-"]
[White "EdvancedChess"]
[Black "onemoretime1975"]
[Result "1-0"]
[WhiteElo "1891"]
[BlackElo "1853"]
[TimeControl "300"]
[EndTime "13:29:12 PDT"]
[Termination "EdvancedChess won by checkmate"]

1. e4 {[%clk 0:04:59.5]} 1... e6 {[%clk 0:04:56.3]} 2. Nf3 {[%clk 0:04:58.9]}
2... d5 {[%clk 0:04:54.7]} 3. exd5 {[%clk 0:04:58.8]} 3... exd5 {[%clk
0:04:53.1]} 4. d4 {[%clk 0:04:58.7]} 4... Nf6 {[%clk 0:04:51.8]} 5. Bd3 {[%clk
0:04:58.6]} 5... Bd6 {[%clk 0:04:49.8]} 6. c3 {[%clk 0:04:58.5]} 6... O-O {[%clk
0:04:48]} 7. O-O {[%clk 0:04:58.4]} 7... Bg4 {[%clk 0:04:45.5]} 8. Bg5 {[%clk
0:04:57.9]} 8... Nbd7 {[%clk 0:04:43.5]} 9. Nbd2 {[%clk 0:04:57.1]} 9... c6
{[%clk 0:04:40.7]} 10. Qb3 {[%clk 0:04:56.6]} 10... Qc7 {[%clk 0:04:33.7]} 11.
Rfe1 {[%clk 0:04:55.9]} 11... Rae8 {[%clk 0:04:30.8]} 12. c4 {[%clk 0:04:54.9]}
12... Bf4 {[%clk 0:04:23]} 13. h3 {[%clk 0:04:33.7]} 13... dxc4 {[%clk
0:04:10.9]} 14. Bxc4 {[%clk 0:04:28.1]} 14... Rxe1+ {[%clk 0:03:56.4]} 15. Rxe1
{[%clk 0:04:26.6]} 15... Bxf3 {[%clk 0:03:36.9]} 16. Nxf3 {[%clk 0:04:24.3]}
16... Nb6 {[%clk 0:03:28.5]} 17. Bxf6 {[%clk 0:04:12.4]} 17... gxf6 {[%clk
0:03:22.5]} 18. Bd3 {[%clk 0:04:01.9]} 18... Nd5 {[%clk 0:03:18.5]} 19. Bb1
{[%clk 0:03:56.7]} 19... Kg7 {[%clk 0:03:03.6]} 20. Qd3 {[%clk 0:03:55.1]} 20...
Rh8 {[%clk 0:03:00.9]} 21. Nh4 {[%clk 0:03:39.3]} 21... Bh2+ {[%clk 0:02:38.7]}
22. Kh1 {[%clk 0:03:37.9]} 22... Nf4 {[%clk 0:02:32.4]} 23. Qf3 {[%clk 0:03:31]}
23... Ng6 {[%clk 0:02:21.6]} 24. Nf5+ {[%clk 0:03:28.7]} 24... Kf8 {[%clk
0:02:19.7]} 25. g3 {[%clk 0:03:11.3]} 25... Bxg3 {[%clk 0:02:05.2]} 26. fxg3
{[%clk 0:03:11.2]} 26... h5 {[%clk 0:02:01.2]} 27. h4 {[%clk 0:03:03.6]} 27...
Kg8 {[%clk 0:01:56]} 28. Re8+ {[%clk 0:03:01.5]} 28... Kh7 {[%clk 0:01:54.2]}
29. Qxh5# {[%clk 0:03:01.2]} 1-0

[Event "Live Chess"]
[Site "Chess.com"]
[Date "2023.05.20"]
[Round "-"]
[White "Doge_Dandolo"]
[Black "anatoliy10912"]
[Result "1-0"]
[WhiteElo "2026"]
[BlackElo "1549"]
[TimeControl "300"]
[EndTime "13:29:20 PDT"]
[Termination "Doge_Dandolo won by resignation"]

1. Nf3 {[%clk 0:04:58.8]} 1... d5 {[%clk 0:04:58.1]} 2. c4 {[%clk 0:04:56.2]}
2... d4 {[%clk 0:04:56.2]} 3. b4 {[%clk 0:04:54.8]} 3... e5 {[%clk 0:04:48.4]}
4. c5 {[%clk 0:04:50.6]} 4... f6 {[%clk 0:04:37.2]} 5. e3 {[%clk 0:04:48.6]}
5... dxe3 {[%clk 0:04:31]} 6. fxe3 {[%clk 0:04:47.3]} 6... b6 {[%clk 0:04:29.4]}
7. Bb5+ {[%clk 0:04:44.9]} 7... c6 {[%clk 0:04:26.8]} 8. Bc4 {[%clk 0:04:43.5]}
8... bxc5 {[%clk 0:04:22.8]} 9. O-O {[%clk 0:04:38.4]} 9... Bg4 {[%clk
0:04:16.2]} 10. bxc5 {[%clk 0:04:35.3]} 10... Bxc5 {[%clk 0:04:13.9]} 11. Nc3
{[%clk 0:04:31.6]} 11... Ne7 {[%clk 0:04:10.2]} 12. Qb3 {[%clk 0:04:29.4]} 12...
Bxf3 {[%clk 0:03:47.8]} 13. Rxf3 {[%clk 0:04:24.9]} 13... Nd7 {[%clk 0:03:35.2]}
14. Ne4 {[%clk 0:04:19.9]} 14... Rb8 {[%clk 0:03:25.7]} 15. Qc2 {[%clk
0:04:14.2]} 15... Nd5 {[%clk 0:03:02.5]} 16. Bxd5 {[%clk 0:04:06.2]} 16... Bxe3+
{[%clk 0:02:55.5]} 17. dxe3 {[%clk 0:04:02.2]} 17... cxd5 {[%clk 0:02:55.2]} 18.
Nc5 {[%clk 0:03:55.4]} 18... Qc7 {[%clk 0:02:41]} 19. Ba3 {[%clk 0:03:53.7]}
19... Rb5 {[%clk 0:02:26.3]} 20. Qa4 {[%clk 0:03:42.5]} 20... Rxc5 {[%clk
0:02:14.9]} 21. Bxc5 {[%clk 0:03:38.7]} 21... Qxc5 {[%clk 0:02:13.4]} 22. Rb1
{[%clk 0:03:27.1]} 22... Ke7 {[%clk 0:02:02.1]} 23. Rb7 {[%clk 0:03:20.1]} 23...
Rd8 {[%clk 0:01:58.8]} 24. Qxa7 {[%clk 0:03:07.8]} 24... Qc1+ {[%clk 0:01:31.5]}
25. Rf1 {[%clk 0:03:05.9]} 25... Qc6 {[%clk 0:01:26.5]} 26. a4 {[%clk
0:02:59.7]} 26... Ke6 {[%clk 0:01:19.3]} 27. a5 {[%clk 0:02:52.5]} 27... Qc4
{[%clk 0:00:45.4]} 28. a6 {[%clk 0:02:44.9]} 28... Qa4 {[%clk 0:00:37.9]} 29.
Rc7 {[%clk 0:02:33.6]} 29... Kd6 {[%clk 0:00:27]} 30. Qb7 {[%clk 0:02:25.1]}
30... Nc5 {[%clk 0:00:13.1]} 31. Qb6+ {[%clk 0:02:17]} 1-0

[Event "Live Chess"]
[Site "Chess.com"]
[Date "2023.05.20"]
[Round "-"]
[White "OSmith06"]
[Black "Reggie016"]
[Result "1-0"]
[WhiteElo "1652"]
[BlackElo "1068"]
[TimeControl "300"]
[EndTime "13:29:21 PDT"]
[Termination "OSmith06 won by checkmate"]

1. e4 {[%clk 0:04:59.6]} 1... e6 {[%clk 0:04:59.2]} 2. d4 {[%clk 0:04:58.2]}
2... d5 {[%clk 0:04:58.8]} 3. Nd2 {[%clk 0:04:57.5]} 3... Nf6 {[%clk 0:04:56.5]}
4. e5 {[%clk 0:04:56.5]} 4... Nfd7 {[%clk 0:04:53.5]} 5. Bd3 {[%clk 0:04:53.6]}
5... c5 {[%clk 0:04:52.8]} 6. c3 {[%clk 0:04:53.1]} 6... cxd4 {[%clk 0:04:51]}
7. cxd4 {[%clk 0:04:53]} 7... f6 {[%clk 0:04:48.8]} 8. exf6 {[%clk 0:04:51.6]}
8... Qxf6 {[%clk 0:04:46.4]} 9. Ne2 {[%clk 0:04:50.1]} 9... Bd6 {[%clk
0:04:44.5]} 10. Nf3 {[%clk 0:04:45.3]} 10... O-O {[%clk 0:04:43.2]} 11. O-O
{[%clk 0:04:42.5]} 11... Nc6 {[%clk 0:04:34.8]} 12. Bg5 {[%clk 0:04:40.4]} 12...
Qf7 {[%clk 0:04:26.1]} 13. Qc2 {[%clk 0:04:24.7]} 13... Qh5 {[%clk 0:04:23.6]}
14. Ng3 {[%clk 0:03:55.4]} 14... Bxg3 {[%clk 0:04:15.4]} 15. fxg3 {[%clk
0:03:53.1]} 15... Rxf3 {[%clk 0:04:11.2]} 16. Rxf3 {[%clk 0:03:42.1]} 16... Qxg5
{[%clk 0:04:08.5]} 17. Bxh7+ {[%clk 0:03:38.1]} 17... Kh8 {[%clk 0:04:05]} 18.
Raf1 {[%clk 0:03:32.3]} 18... Nxd4 {[%clk 0:04:01.4]} 19. Rf8+ {[%clk
0:03:29.4]} 19... Nxf8 {[%clk 0:03:59.9]} 20. Rxf8# {[%clk 0:03:29.3]} 1-0

[Event "Live Chess"]
[Site "Chess.com"]
[Date "2023.05.20"]
[Round "-"]
[White "omisoc"]
[Black "EdenHazard8"]
[Result "1-0"]
[WhiteElo "2177"]
[BlackElo "2085"]
[TimeControl "300"]
[EndTime "13:29:36 PDT"]
[Termination "omisoc won by resignation"]

1. Nf3 {[%clk 0:04:57.4]} 1... d5 {[%clk 0:04:56.2]} 2. g3 {[%clk 0:04:56]} 2...
c5 {[%clk 0:04:53.7]} 3. Bg2 {[%clk 0:04:54.3]} 3... Nc6 {[%clk 0:04:53.2]} 4.
O-O {[%clk 0:04:52.8]} 4... e5 {[%clk 0:04:52.7]} 5. d3 {[%clk 0:04:50.4]} 5...
Nf6 {[%clk 0:04:50.4]} 6. Nbd2 {[%clk 0:04:48.3]} 6... h6 {[%clk 0:04:48.3]} 7.
e4 {[%clk 0:04:46.3]} 7... d4 {[%clk 0:04:47.8]} 8. Nc4 {[%clk 0:04:44.2]} 8...
Qc7 {[%clk 0:04:46.8]} 9. a4 {[%clk 0:04:42.4]} 9... Be6 {[%clk 0:04:44.7]} 10.
Nh4 {[%clk 0:04:40.2]} 10... g6 {[%clk 0:04:38.3]} 11. f4 {[%clk 0:04:38.3]}
11... Be7 {[%clk 0:04:29.6]} 12. Nxe5 {[%clk 0:03:50]} 12... Nxe5 {[%clk
0:04:29.5]} 13. fxe5 {[%clk 0:03:49]} 13... Qxe5 {[%clk 0:04:27]} 14. Bf4 {[%clk
0:03:28.1]} 14... Qh5 {[%clk 0:04:25.3]} 15. Bf3 {[%clk 0:03:27.1]} 15... Bg4
{[%clk 0:04:23.7]} 16. Bxg4 {[%clk 0:03:25.6]} 16... Nxg4 {[%clk 0:04:23.6]} 17.
h3 {[%clk 0:03:24.6]} 17... Nf6 {[%clk 0:04:19.3]} 18. e5 {[%clk 0:02:55]} 18...
Qxd1 {[%clk 0:04:14.2]} 19. Raxd1 {[%clk 0:02:54.6]} 19... Nd5 {[%clk
0:04:12.9]} 20. e6 {[%clk 0:02:53.4]} 20... g5 {[%clk 0:04:02.7]} 21. exf7+
{[%clk 0:02:51.7]} 21... Kf8 {[%clk 0:04:01.4]} 22. Ng6+ {[%clk 0:02:50.4]}
22... Kg7 {[%clk 0:03:59.6]} 23. Nxh8 {[%clk 0:02:49]} 23... Kxh8 {[%clk
0:03:57.6]} 24. Bd2 {[%clk 0:02:42.5]} 24... Rf8 {[%clk 0:03:54.4]} 25. Rf5
{[%clk 0:02:41.2]} 25... Nf6 {[%clk 0:03:52.2]} 26. Rdf1 {[%clk 0:02:36.3]}
26... Rxf7 {[%clk 0:03:50.9]} 27. h4 {[%clk 0:02:33.7]} 27... gxh4 {[%clk
0:03:49.4]} 28. gxh4 {[%clk 0:02:28.5]} 28... Rg7+ {[%clk 0:03:48.2]} 29. Kh1
{[%clk 0:02:26.3]} 29... Ng4 {[%clk 0:03:45.4]} 30. Rf7 {[%clk 0:02:18.1]} 30...
Bxh4 {[%clk 0:03:43.7]} 31. R1f4 {[%clk 0:02:02.3]} 31... Rxf7 {[%clk
0:03:35.2]} 32. Rxf7 {[%clk 0:02:02.2]} 32... Ne3 {[%clk 0:03:31.7]} 33. Rxb7
{[%clk 0:01:53.9]} 33... Nxc2 {[%clk 0:03:28.1]} 34. Rxa7 {[%clk 0:01:51.2]}
34... Bg5 {[%clk 0:03:25.8]} 35. Bxg5 {[%clk 0:01:47]} 35... hxg5 {[%clk
0:03:25.7]} 36. a5 {[%clk 0:01:45.8]} 36... Nb4 {[%clk 0:03:24.3]} 37. Rb7
{[%clk 0:01:44.1]} 37... Nxd3 {[%clk 0:03:15.2]} 38. a6 {[%clk 0:01:41.7]} 38...
Nb4 {[%clk 0:03:07.5]} 39. a7 {[%clk 0:01:39.4]} 1-0

[Event "Live Chess"]
[Site "Chess.com"]
[Date "2023.05.20"]
[Round "-"]
[White "therealab0ne"]
[Black "wot-not"]
[Result "0-1"]
[WhiteElo "704"]
[BlackElo "1501"]
[TimeControl "300"]
[EndTime "13:29:42 PDT"]
[Termination "wot-not won on time"]

1. e4 {[%clk 0:04:59.8]} 1... e5 {[%clk 0:04:57.1]} 2. Bc4 {[%clk 0:04:59]} 2...
d6 {[%clk 0:04:54.6]} 3. Nc3 {[%clk 0:04:52.7]} 3... Be6 {[%clk 0:04:52.7]} 4.
Bxe6 {[%clk 0:04:46.6]} 4... fxe6 {[%clk 0:04:52]} 5. d3 {[%clk 0:04:45]} 5...
Nc6 {[%clk 0:04:51.2]} 6. Nf3 {[%clk 0:04:39.2]} 6... Be7 {[%clk 0:04:49.8]} 7.
O-O {[%clk 0:04:35.5]} 7... h6 {[%clk 0:04:47.9]} 8. Re1 {[%clk 0:04:13.8]} 8...
g5 {[%clk 0:04:45]} 9. Be3 {[%clk 0:03:58.1]} 9... Qd7 {[%clk 0:04:41.9]} 10. a4
{[%clk 0:03:44.4]} 10... Nf6 {[%clk 0:04:37.7]} 11. d4 {[%clk 0:02:58.4]} 11...
exd4 {[%clk 0:04:27.6]} 12. Nxd4 {[%clk 0:02:56.8]} 12... Nxd4 {[%clk
0:04:26.9]} 13. Bxd4 {[%clk 0:02:46]} 13... e5 {[%clk 0:04:23]} 14. Nd5 {[%clk
0:02:37.1]} 14... Nxd5 {[%clk 0:04:20.7]} 15. exd5 {[%clk 0:02:35.9]} 15... exd4
{[%clk 0:04:07.7]} 16. Qxd4 {[%clk 0:02:21]} 16... b6 {[%clk 0:04:00.7]} 17.
Qxh8+ {[%clk 0:02:16.5]} 17... Kf7 {[%clk 0:03:57.1]} 18. Qxa8 {[%clk
0:01:46.8]} 18... Bf6 {[%clk 0:03:56.3]} 19. Qc6 {[%clk 0:01:34]} 19... Qg4
{[%clk 0:03:51.2]} 20. Qe8+ {[%clk 0:01:26.8]} 20... Kg7 {[%clk 0:03:49.2]} 21.
h3 {[%clk 0:01:11.5]} 21... Qf4 {[%clk 0:03:41.2]} 22. Re2 {[%clk 0:01:01.7]}
22... Be5 {[%clk 0:03:39.2]} 23. Qe7+ {[%clk 0:00:54.8]} 23... Kg6 {[%clk
0:03:31.4]} 24. g3 {[%clk 0:00:43.2]} 24... Qc4 {[%clk 0:03:12.1]} 25. g4 {[%clk
0:00:27.3]} 25... Qxe2 {[%clk 0:03:08.9]} 26. Qxc7 {[%clk 0:00:16.9]} 26... Qf3
{[%clk 0:02:58.4]} 27. Qxa7 {[%clk 0:00:12.4]} 27... Qxh3 {[%clk 0:02:50.8]} 0-1

[Event "Live Chess"]
[Site "Chess.com"]
[Date "2023.05.20"]
[Round "-"]
[White "matt1979"]
[Black "Vitalii18a"]
[Result "1-0"]
[WhiteElo "1475"]
[BlackElo "1106"]
[TimeControl "300"]
[EndTime "13:29:58 PDT"]
[Termination "matt1979 won by checkmate"]

1. f4 {[%clk 0:04:59.1]} 1... f5 {[%clk 0:04:57.6]} 2. e4 {[%clk 0:04:57.5]}
2... e6 {[%clk 0:04:53.9]} 3. d3 {[%clk 0:04:51.7]} 3... fxe4 {[%clk 0:04:41.1]}
4. dxe4 {[%clk 0:04:49.4]} 4... Be7 {[%clk 0:04:39.8]} 5. Nf3 {[%clk 0:04:44.4]}
5... d6 {[%clk 0:04:30.5]} 6. Nc3 {[%clk 0:04:39.4]} 6... e5 {[%clk 0:04:22.5]}
7. f5 {[%clk 0:04:36.9]} 7... Nf6 {[%clk 0:04:19.1]} 8. Bg5 {[%clk 0:04:33.7]}
8... h6 {[%clk 0:04:16]} 9. Bxf6 {[%clk 0:04:31.5]} 9... Bxf6 {[%clk 0:04:14.6]}
10. Nd2 {[%clk 0:04:21.9]} 10... Nd7 {[%clk 0:04:12.9]} 11. Qh5+ {[%clk
0:04:20.1]} 11... Ke7 {[%clk 0:03:59.1]} 12. Nd5+ {[%clk 0:04:16.6]} 12... Kf8
{[%clk 0:03:56.1]} 13. Bc4 {[%clk 0:04:07.9]} 13... c6 {[%clk 0:03:52.7]} 14.
Ne3 {[%clk 0:03:55]} 14... d5 {[%clk 0:03:51.3]} 15. exd5 {[%clk 0:03:52.9]}
15... Nb6 {[%clk 0:03:42.8]} 16. Bb3 {[%clk 0:03:47.1]} 16... cxd5 {[%clk
0:03:33.8]} 17. O-O {[%clk 0:03:33.4]} 17... Qe7 {[%clk 0:03:27.5]} 18. Nxd5
{[%clk 0:03:27.9]} 18... Nxd5 {[%clk 0:03:25.8]} 19. Bxd5 {[%clk 0:03:23.7]}
19... Rb8 {[%clk 0:03:18]} 20. Kh1 {[%clk 0:03:17.8]} 20... Bd7 {[%clk
0:03:16.4]} 21. Rad1 {[%clk 0:03:10.5]} 21... Be8 {[%clk 0:03:14.5]} 22. Qg4
{[%clk 0:03:03.9]} 22... Bf7 {[%clk 0:03:13]} 23. Bxf7 {[%clk 0:03:02.3]} 23...
Qxf7 {[%clk 0:03:09.2]} 24. Ne4 {[%clk 0:02:58.6]} 24... Ke7 {[%clk 0:02:52.6]}
25. Nc5 {[%clk 0:02:48.6]} 25... Qxa2 {[%clk 0:02:46.2]} 26. Rd7+ {[%clk
0:02:45]} 26... Ke8 {[%clk 0:02:43.1]} 27. Qg6+ {[%clk 0:02:41.6]} 27... Kf8
{[%clk 0:02:41.1]} 28. Ne6+ {[%clk 0:02:37.9]} 28... Kg8 {[%clk 0:02:26.4]} 29.
Rfd1 {[%clk 0:02:31]} 29... h5 {[%clk 0:02:21.1]} 30. Rd8+ {[%clk 0:02:28.8]}
30... Rxd8 {[%clk 0:02:19.1]} 31. Nxd8 {[%clk 0:02:23.9]} 31... Rh6 {[%clk
0:02:15.1]} 32. Qe8+ {[%clk 0:02:17.9]} 32... Kh7 {[%clk 0:02:10.9]} 33. Ne6
{[%clk 0:02:08.9]} 33... h4 {[%clk 0:02:01.2]} 34. Nf8+ {[%clk 0:02:06.1]} 34...
Kg8 {[%clk 0:01:58.4]} 35. Ng6+ {[%clk 0:01:56.3]} 35... Kh7 {[%clk 0:01:56.7]}
36. Qh8# {[%clk 0:01:54.4]} 1-0